{"text_format":"1","workbook":"xlsx","n_sheets":17,"sheets":["INDICE","O AMBIENTE EXCEL","Referência relat-abs","Referência relat-abs_exe","Soma-Méd-Mín-Max","Soma-Méd-Mín-Max_EXE","Função SE","Função SE_EXE","Função ORDEM","Função ORDEM_exe","FUNÇÃO SomaSE","FUNÇÃO SomaSE_EXE","FORMATAÇÃO CONDICIONAL","FORMATAÇÃO CONDICIONAL_EXE","FORMATAÇÃO CONDICIONAL na linha","FORMATAÇÃO CONDICIONAL na Li_ex","TECLAS DE ATALHO"],"not_rendered":{"charts":0,"images":9,"macros":1,"external_links":0,"defined_names":6,"comments":0,"pivot_tables":0},"unopened":[],"bounds":{"document_bytes":16777216,"sheet_cells":100000,"rows_first":2000,"rows_last":500,"rows_between":2000,"halvings":0,"cell_chars":16384,"cell_head_chars":4096},"cells_cut":0,"cells_raw":0,"read":"whole","date_system":"1900"}

{"sheet":"INDICE","index":0,"n_rows":49,"n_cols":4,"rows_kept":49,"cut":false,"hidden":false,"merged":[[1,1,1,3]]}
[]
[null,"Conteúdo do Curso de Excel"]
[]
[]
[null,"ÍNDICE","Sintaxe","Exercício"]
[null,"O AMBIENTE EXCEL","Ir"]
[null,"REFERÊNCIA RELATIVA E ABSOLUTA","Ir","Ir"]
[null,"FUNÇÕES SOMA, MÉDIA, MAXIMO E MÍNIMO","Ir","Ir"]
[null,"FUNÇÃO SE COM E ","Ir","Ir"]
[null,"FUNÇÃO ORDEM","Ir","Ir"]
[null,"FUNÇÃO  SOMASE","Ir","Ir"]
[null,"FORMATAÇÃO CONDICIONAL NA CÉLULA","Ir","Ir"]
[null,"FORMATAÇÃO CONDICIONAL NA LINHA","Ir","Ir"]
[null,"Intermediario"]
[null,"NOMEANDO INTERVALOS","Ir","Ir"]
[null,"FUNÇÃO CONTASE","Ir","Ir"]
[null,"CONGELAR PAINÉIS","Ir","Ir"]
[null,"FUNÇÃO SUBTOTAL","Ir","Ir"]
[null,"AUTO FILTRO","Ir","Ir"]
[null,"FILTRO AVANÇADO","Ir","Ir"]
[null,"PROCV","Ir","Ir"]
[null,"VALIDAÇÃO DE DADOS ","Ir","Ir"]
[null,"VALIDAÇÃO DE DADOS - LISTA","Ir","Ir"]
[null,"FUNÇÕES DE TEXTO","Ir","Ir"]
[null,"FUNÇÃO DE CONTAGEM","Ir","Ir"]
[null,"FUNÇÃO DE DATA E HORA","Ir","Ir"]
[null,"FUNÇÕES FINANCEIRAS - VF, VP, NPER, TAXA, PGATO","Ir","Ir"]
[null,"TEXTO PARA COLUNA","Ir"]
[null,"MASCARA NO EXCEL","Ir","Ir"]
[null,"MASCARA NO EXCEL_EXE_2",null,"Ir"]
[null,"GRÁFICOS","Ir","Ir"]
[null,"GRAFICOS -MODELO 1","Ir","Ir"]
[null,"GRAFICOS -MODELO 2","Ir","Ir"]
[null,"GRAFICOS -MODELO 3","Ir"]
[null,"HIPERLINK","Ir","Ir"]
[null,"PROTEÇÃO DE PLANILHAS","Ir"]
[null,"PROTEÇÃO DE PLANILHAS_EXE_A",null,"Ir"]
[null,"PROTEÇÃO DE PLANILHAS_EXE_B",null,"Ir"]
[null,"Avançado"]
[null,"FORMULÁRIOS","Ir"]
[null,"FORMULÁRIOS - 1)- CONTROLE GIRATÓRIO_EXE","Ir"]
[null,"FORMULÁRIOS - 2)- BARRA DE ROLAGEM_EXE","Ir"]
[null,"FORMULÁRIOS - 3)- BOTÃO DE OPÇÃO_EXE","Ir"]
[null,"FORMULÁRIOS - 4)- CAIXA DE COMBINAÇÃO_EXE","Ir"]
[null,"FORMULÁRIOS 1","Ir","Ir"]
[null,"FORMULÁRIOS 2","Ir","Ir"]
[null,"MACRO 1","Ir","Ir"]
[null,"MACRO 2","Ir","Ir"]
[null,"TECLAS DE ATALHOS","Ir"]

{"sheet":"O AMBIENTE EXCEL","index":1,"n_rows":2,"n_cols":2,"rows_kept":2,"cut":false,"hidden":false,"merged":[]}
[]
[null,"O AMBIENTE DE TRABALHO DO EXCEL 2007"]

{"sheet":"Referência relat-abs","index":2,"n_rows":37,"n_cols":21,"rows_kept":37,"cut":false,"hidden":false,"merged":[[2,1,2,5]]}
[null,"REFERÊNCIA RELATIVA E ABSOLUTA (F4)"]
[]
[null,"Cesta básica"]
[null,"Reajuste",0.04]
[null,"Produtos","Quantidade","Preço Unitário","Total","Reajuste"]
[null,"Arroz",1,3.57,3.57,{"$f":"E6*C$4","v":0.14280000000000001}]
[null,"Feijão",2,2.14,4.28,{"$f":"E7*C$4","v":0.17120000000000002}]
[null,"Café",3,0.89,2.67,0.10680000000000001]
[null,"Açucar",5,0.53,2.65,0.106]
[null,"Óleo",3,0.69,2.0699999999999998,8.2799999999999999E-2]
[null,"Sal",1,0.28000000000000003,0.28000000000000003,1.1200000000000002E-2]
[null,"Macarrão",2,0.65,1.3,5.2000000000000005E-2]
[null,"Molho de tomate",3,0.72,2.16,8.6400000000000005E-2]
[]
[]
[]
[]
[null,"% Comissão",0.02]
[]
[null,null,"JAN","FEV","MAR","ABR","JUN","JUL"]
[null,"Total",500,5600,4000,3000,4500,5100,"Contabil"]
[null,"Comissão",{"$f":"$C$18*C21","v":10},112,80,60,90,102,"Moeda"]
[null,null,".=$C18$*C21",".=$C18$*D21",".=$C18$*E21",".=$C18$*F21",".=$C18$*G21",".=$C18$*H21"]
[]
[]
[]
[null,null,null,null,null,null,null,null,null,null,null,1,2,3,4,5,6,7,8,9,10]
[null,null,null,null,null,null,null,null,null,null,null,11,12,13,14,15,16,17,18,19,20]
[null,null,null,null,null,null,null,null,null,null,null,21,22,23,24,25,26,27,28,29,30]
[null,null,null,null,null,null,null,null,null,null,null,31,32,33,34,35,36,37,38,39,40]
[null,null,null,null,null,null,null,null,null,null,null,41,42,43,44,45,46,47,48,49,50]
[null,null,null,null,null,null,null,null,null,null,null,51,52,53,54,55,56,57,58,59,60]
[null,null,null,null,null,null,null,null,null,null,null,61,62,63,64,65,66,67,68,69,70]
[null,null,null,null,null,null,null,null,null,null,null,71,72,73,74,75,76,77,78,79,80]
[null,null,null,null,null,null,null,null,null,null,null,81,82,83,84,85,86,87,88,89,90]
[null,null,null,null,null,null,null,null,null,null,null,91,92,93,94,95,96,97,98,99,100]
[null,null,null,null,null,null,null,null,null,null,null,101,102,103,104,105,106,107,108,109,110]

{"sheet":"Referência relat-abs_exe","index":3,"n_rows":29,"n_cols":15,"rows_kept":29,"cut":false,"hidden":false,"merged":[[2,2,2,6]]}
[null,null,"REFERÊNCIA RELATICA E ABSOLUTA - Exercícios"]
[]
[null,null,"Cesta básica"]
[null,null,"Reajuste",0.04]
[null,null,"Produtos","Quantidade","Preço Unitário","Total","Reajuste",null,null,null,null,null,"Reajuste",1.4E-2]
[null,null,"Arroz",1,3.57,null,null,null,null,null,null,null,"Funcionário","Salário","Reajuste"]
[null,null,"Feijão",2,2.14,null,null,null,null,null,null,null,"Alex (Chelsea)",1982]
[null,null,"Café",3,0.89,null,null,null,null,null,null,null,"Alexandre Pato (Milan)",1200]
[null,null,"Açucar",5,0.53,null,null,null,null,null,null,null,"Anderson (Manchester United)",3000]
[null,null,"Óleo",3,0.69,null,null,null,null,null,null,null,"André Santos (Corinthians)",2700]
[null,null,"Sal",1,0.28000000000000003,null,null,null,null,null,null,null,"Daniel Alves (Barcelona)",1908]
[null,null,"Macarrão",2,0.65,null,null,null,null,null,null,null,"Elano (Manchester City)",2897]
[null,null,"Molho de tomate",3,0.72,null,null,null,null,null,null,null,"Felipe Melo (Fiorentina)",3990]
[null,null,null,null,null,null,null,null,null,null,null,null,"Gilberto Silva (Panathinaikos)",4590]
[null,null,null,null,null,null,null,null,null,null,null,null,"Gomes (Tottenham)",3457]
[null,null,null,null,null,null,null,null,null,null,null,null,"Josué (Wolfsburg)",2098]
[null,null,null,null,null,null,null,null,null,null,null,null,"Juan (Roma)",1230]
[null,null,"% Comissão",0.02,null,null,null,null,null,null,null,null,"Júlio Baptista (Roma)",1509]
[null,null,null,null,null,null,null,null,null,null,null,null,"Julio César (Internazionale)",3490]
[null,null,null,"JAN","FEV","MAR","ABR","JUN","JUL",null,null,null,"Kaká (Milan)",4657]
[null,null,"Total",500,5600,4000,3000,4500,5100,null,null,null,"Kleber (Internacional)",2093]
[null,null,"Comissão",null,null,null,null,null,null,null,null,null,"Lúcio (Bayern de Munique)",4320]
[null,null,null,null,null,null,null,null,null,null,null,null,"Luís Fabiano (Sevilla)",3984]
[null,null,null,null,null,null,null,null,null,null,null,null,"Luisão (Benfica)",2098]
[null,null,null,null,null,null,null,null,null,null,null,null,"Maicon (Internazionale)",3928]
[null,null,null,null,null,null,null,null,null,null,null,null,"Nilmar (Internacional)",4309]
[null,null,null,null,null,null,null,null,null,null,null,null,"Ramires (Cruzeiro)",1092]
[null,null,null,null,null,null,null,null,null,null,null,null,"Robinho (Manchester City)",2992]
[null,null,null,null,null,null,null,null,null,null,null,null,"Victor (Grêmio)",3872]

{"sheet":"Soma-Méd-Mín-Max","index":4,"n_rows":17,"n_cols":5,"rows_kept":17,"cut":false,"hidden":false,"merged":[[2,1,2,4]]}
[null,"FUNÇÃO SOMA - MÉDIA - MÍNIMO - MÁXIMO"]
[]
[null,"Cesta básica"]
[null,"Produtos","Quantidade","Preço Unitário","Valor Total "]
[null,"Arroz",1,{"$f":"'Referência relat-abs'!D6","v":3.57},{"$f":"D5*C5","v":3.57}]
[null,"Feijão",2,{"$f":"'Referência relat-abs'!D7","v":2.14},{"$f":"D6*C6","v":4.28}]
[null,"Café",3,{"$f":"'Referência relat-abs'!D8","v":0.89},2.67]
[null,"Açucar",5,{"$f":"'Referência relat-abs'!D9","v":0.53},2.6500000000000004]
[null,"Óleo",3,{"$f":"'Referência relat-abs'!D10","v":0.69},2.0699999999999998]
[null,"Sal",1,{"$f":"'Referência relat-abs'!D11","v":0.28000000000000003},0.28000000000000003]
[null,"Macarrão",2,{"$f":"'Referência relat-abs'!D12","v":0.65},1.3]
[null,"Molho de tomate",3,{"$f":"'Referência relat-abs'!D13","v":0.72},2.16]
[]
[null,"Média da Cesta",{"$f":"AVERAGE(E5:E12)","v":2.3725000000000001},"Média"]
[null,"Produto mais caro",{"$f":"MAX(E5:E12)","v":4.28},"Máximo"]
[null,"Produto mais barato",{"$f":"MIN(E5:E12)","v":0.28000000000000003},"Mínino"]
[null,"Total da Cesta",{"$f":"SUM(E5:E12)","v":18.98},"Soma"]

{"sheet":"Soma-Méd-Mín-Max_EXE","index":5,"n_rows":28,"n_cols":12,"rows_kept":28,"cut":false,"hidden":false,"merged":[[2,2,2,3],[14,2,14,5]]}
[null,null,"FUNÇÃO SOMA - MÉDIA - MÍNIMO - MÁXIMO Exercício"]
[]
[null,null,"RELATÓRIO DE VENDAS",null,null,null,null,null,null,null,null,"Exercício 1"]
[null,null,"NOME","VALOR"]
[null,null,"Edson",3000]
[null,null,"Sergio",2310,null,"Média de Vendas",null,"Média"]
[null,null,"Eliziane",2000,null,"A maior venda",null,"Máximo"]
[null,null,"Fábio",2000,null,"A menor Venda",null,"Mínino"]
[null,null,"Elizangela",5300,null,"Total de vendas",null,"Soma"]
[null,null,"Bruno",5000]
[null,null,"Adriana",3400]
[]
[]
[]
[null,null,"CESTA BÁSICA",null,null,null,null,"Média",null,"Média",null,"Exercício 2"]
[null,null,"Produtos","Quantidade","Valor","Valor Total ",null,"Maior",null,"Máximo"]
[null,null,"Arroz",33,2.44,null,null,"Menor",null,"Mínino"]
[null,null,"Feijão",2,3.56,null,null,"Total",null,"Soma"]
[null,null,"Café",8,3]
[null,null,"Açucar",3,3.9,null,null,"Média",null,"Média"]
[null,null,"Óleo",6,3.4,null,null,"Maior",null,"Máximo"]
[null,null,"Sal",5,3.56,null,null,"Menor",null,"Mínino"]
[null,null,"Macarrão",16,4.55,null,null,"Total",null,"Soma"]
[null,null,"Molho de tomate",7,0.89]
[null,null,null,null,null,null,null,"Média",null,"Média"]
[null,null,null,null,null,null,null,"Maior",null,"Máximo"]
[null,null,null,null,null,null,null,"Menor",null,"Mínino"]
[null,null,null,null,null,null,null,"Total",null,"Soma"]

{"sheet":"Função SE","index":6,"n_rows":21,"n_cols":9,"rows_kept":21,"cut":false,"hidden":false,"merged":[[1,3,1,6],[13,3,13,6]]}
[null,"FUNÇÃO SE"]
[null,null,null,"Boletim Escolar"]
[]
[null,"Nomes","1º Bim","2º Bim","3º Bim","4º Bim","Média","Situação"]
[null,"Fábio",7,3,7,7,{"$f":"AVERAGE(C5:F5)","v":6},{"$f":"IF(G5>=7,\"aprovado\",\"reprovado\")","v":"reprovado"}]
[null,"Cleiton",8,10,3,9,{"$f":"AVERAGE(C6:F6)","v":7.5},{"$f":"IF(G6>=7,\"aprovado\",\"reprovado\")","v":"aprovado"}]
[null,"Henrique",2,3,1,3,{"$f":"AVERAGE(C7:F7)","v":2.25},{"$f":"IF(G7>=7,\"aprovado\",\"reprovado\")","v":"reprovado"}]
[null,"Fabíola",9,3,0,5,{"$f":"AVERAGE(C8:F8)","v":4.25},{"$f":"IF(G8>=7,\"aprovado\",\"reprovado\")","v":"reprovado"}]
[null,"Fernando ",9,9,10,9,{"$f":"AVERAGE(C9:F9)","v":9.25},{"$f":"IF(G9>=7,\"aprovado\",\"reprovado\")","v":"aprovado"}]
[]
[]
[]
[null,"FUNÇÃO SE e E"]
[null,null,null,"Boletim Escolar"]
[]
["*","Nomes","1º Bim","2º Bim","3º Bim","4º Bim","Média","Frequência","Situação"]
[null,"Fábio",7,7,7,7,8,70,{"$f":"IF(AND(G17>=7,H17>=70),\"aprovado\",\"reprovado\")","v":"aprovado"}]
[null,"Cleiton",8,10,3,9,{"$f":"AVERAGE(C18:F18)","v":7.5},40,{"$f":"IF(AND(G18>=7,H18>=70),\"aprovado\",\"reprovado\")","v":"reprovado"}]
[null,"Henrique",9,2,8,9,{"$f":"AVERAGE(C19:F19)","v":7},80,{"$f":"IF(AND(G19>=7,H19>=70),\"aprovado\",\"reprovado\")","v":"aprovado"}]
[null,"Fabíola",8,3,5,5,{"$f":"AVERAGE(C20:F20)","v":5.25},90,{"$f":"IF(AND(G20>=7,H20>=70),\"aprovado\",\"reprovado\")","v":"reprovado"}]
[null,"Fernando ",9,9,10,9,{"$f":"AVERAGE(C21:F21)","v":9.25},60,{"$f":"IF(AND(G21>=7,H21>=70),\"aprovado\",\"reprovado\")","v":"reprovado"}]

{"sheet":"Função SE_EXE","index":7,"n_rows":24,"n_cols":10,"rows_kept":24,"cut":false,"hidden":false,"merged":[]}
[null,null,"FUNÇÃO SE Exercício"]
[]
[]
[null,null,"Vendedor","Vendas","Situação",null,null,"Vendedor","Entregas","Situação"]
[null,null,"Pedro",17000,null,null,null,"Carlos",22]
[null,null,"Jonas",14000,null,null,null,"Evandro",30]
[null,null,"Carla",19000,null,null,null,"Ednéia",18]
[]
[]
[]
[]
[]
[]
[null,null,"FUNÇÃO SE e E Exercício"]
[]
[]
[null,null,"Vendedor","Vendas","Visitas","Situação"]
[null,null,"Pedro",15000,30]
[null,null,"Jonas",14000,32]
[null,null,"Carla",19000,52]
[null,null,"Thiago",12000,30]
[null,null,"Fernando",10000,80]
[null,null,"Fábio",20000,30]
[null,null,"Gustavo",22000,50]

{"sheet":"Função ORDEM","index":8,"n_rows":13,"n_cols":4,"rows_kept":13,"cut":false,"hidden":false,"merged":[[2,1,2,3]]}
[null,"FUNÇÃO ORDEM"]
[]
[null,"Classificação das Vendas"]
[null,"Vendedor","Visitas","Classificação"]
[null,"Amanda",45,{"$f":"RANK(C5,$C$5:$C$13)","v":2}]
[null,"André",50,{"$f":"RANK(C6,$C$5:$C$13)","v":1}]
[null,"Elizete",5,7]
[null,"Fábio",9,5]
[null,"Gustavo",23,4]
[null,"Helen",34,3]
[null,"Isabela",4,8]
[null,"Marina",6,6]
[null,"Pedro",2,9]

{"sheet":"Função ORDEM_exe","index":9,"n_rows":27,"n_cols":11,"rows_kept":27,"cut":false,"hidden":false,"merged":[[2,2,2,4]]}
[null,null,"FUNÇÃO ORDEM Exercício"]
[]
[null,null,"Classificação das Vendas"]
[null,null,"Aluno","Visita","Classificação",null,null,null,"JOGADOR","GOLS","CLASSIF."]
[null,null,"Elizete",7,null,null,null,null,"Alex (Chelsea)",30]
[null,null,"Amanda",6,null,null,null,null,"Alexandre Pato (Milan)",40]
[null,null,"Pedro",10,null,null,null,null,"Anderson (Manchester United)",20]
[null,null,"Marina",8,null,null,null,null,"André Santos (Corinthians)",30]
[null,null,"Isabela",7,null,null,null,null,"Daniel Alves (Barcelona)",40]
[null,null,"André",9,null,null,null,null,"Elano (Manchester City)",50]
[null,null,null,null,null,null,null,null,"Felipe Melo (Fiorentina)",38]
[null,null,null,null,null,null,null,null,"Gilberto Silva (Panathinaikos)",45]
[null,null,null,null,null,null,null,null,"Gomes (Tottenham)",60]
[null,null,null,null,null,null,null,null,"Josué (Wolfsburg)",29]
[null,null,null,null,null,null,null,null,"Juan (Roma)",49]
[null,null,null,null,null,null,null,null,"Júlio Baptista (Roma)",56]
[null,null,null,null,null,null,null,null,"Julio César (Internazionale)",30]
[null,null,null,null,null,null,null,null,"Kaká (Milan)",65]
[null,null,null,null,null,null,null,null,"Kleber (Internacional)",39]
[null,null,null,null,null,null,null,null,"Lúcio (Bayern de Munique)",42]
[null,null,null,null,null,null,null,null,"Luís Fabiano (Sevilla)",40]
[null,null,null,null,null,null,null,null,"Luisão (Benfica)",30]
[null,null,null,null,null,null,null,null,"Maicon (Internazionale)",23]
[null,null,null,null,null,null,null,null,"Nilmar (Internacional)",49]
[null,null,null,null,null,null,null,null,"Ramires (Cruzeiro)",50]
[null,null,null,null,null,null,null,null,"Robinho (Manchester City)",20]
[null,null,null,null,null,null,null,null,"Victor (Grêmio)",48]

{"sheet":"FUNÇÃO SomaSE","index":10,"n_rows":15,"n_cols":8,"rows_kept":15,"cut":false,"hidden":false,"merged":[[8,6,8,7],[14,1,14,3],[2,1,2,4]]}
[null,"FUNÇÃO SOMASE"]
[]
[null,"Relatório de venda por região"]
[]
[null,"Mês","Região","Vendedor","Quantidade"]
[null,"Jan","Norte","Paulo",5000]
[null,"Jan","Sudeste","Paulo",4572]
[null,"Jan","Sudeste","Wilian",8925]
[null,"Fev","Norte","Sérgio",7210,null,"Resumo Por Região"]
[null,"Fev","Nordeste","Jaime",6389,null,"Norte",{"$f":"SUMIF(C6:C14,G10,$E$6:$E$14)","v":18671}]
[null,"Fev","Sudeste","Sérgio",5517,null,"Nordeste",{"$f":"SUMIF(C6:C14,G11,E6:E14)","v":14224}]
[null,"Mar","Norte","Jaime",6461,null,"Sudeste",{"$f":"SUMIF(C6:C14,G12,E6:E14)","v":28315}]
[null,"Mar","Nordeste","Paulo",7835,null,"total",{"$f":"SUM(H10:H12)","v":61210}]
[null,"Mar","Sudeste","Jaime",9301]
[null,"Total em Kg",null,null,61210]

{"sheet":"FUNÇÃO SomaSE_EXE","index":11,"n_rows":20,"n_cols":8,"rows_kept":20,"cut":false,"hidden":false,"merged":[[2,1,2,3],[14,6,14,7],[8,6,8,7]]}
[null,"FUNÇÃO SOMASE Exercício"]
[]
[null,"Relatório de vendas do mês"]
[]
[null,"Vendedor","Produto","Quantidade"]
[null,"Paulo","Calça",30]
[null,"Paulo","Camisa",20]
[null,"Wilian","Chinelo",30]
[null,"Sérgio","Chinelo",40,null,null,"Resumo Por Produto"]
[null,"Jaime","Camisa",20,null,null,"Calça"]
[null,"Sérgio","Camisa",30,null,null,"Camisa"]
[null,"Jaime","Camisa",40,null,null,"Chinelo"]
[null,"Paulo","Calça",5,null,null,null,{"$f":"SUM(H10:H12)","v":0}]
[null,"Jaime","Camisa",30]
[null,"Total vendido",null,{"$f":"SUM(D6:D14)","v":245},null,null,"Resumo Por Vendedor"]
[null,null,null,null,null,null,"Paulo"]
[null,null,null,null,null,null,"Wilian"]
[null,null,null,null,null,null,"Sérgio"]
[null,null,null,null,null,null,"Jaime"]
[null,null,null,null,null,null,null,{"$f":"SUM(H16:H19)","v":0}]

{"sheet":"FORMATAÇÃO CONDICIONAL","index":12,"n_rows":10,"n_cols":3,"rows_kept":10,"cut":false,"hidden":false,"merged":[[2,1,2,2]]}
[null,"FORMATAÇÃO CONDICIONAL na célula"]
[]
[null,"Relação de Comissão"]
[null,"Nome","Valor"]
[null,"Fábio ",567]
[null,"Marcia",1000]
[null,"Fabiana",400]
[null,"Edson",900]
[null,"Jefferson",500]
[null,"Sergio",345]

{"sheet":"FORMATAÇÃO CONDICIONAL_EXE","index":13,"n_rows":35,"n_cols":4,"rows_kept":35,"cut":false,"hidden":false,"merged":[[2,2,2,3],[27,2,27,3]]}
[null,null,"FORMATAÇÃO CONDICIONAL na célula Exercício"]
[]
[null,null,"Relação de Comissão"]
[null,null,"Nome","Valor"]
[null,null,"Fábio ",567]
[null,null,"Marcia",560]
[null,null,"Fabiana",400]
[null,null,"Edson",900]
[null,null,"Jefferson",980]
[null,null,"Sergio",345]
[]
[]
[]
[]
[null,null,"Vendedor","Visitas"]
[null,null,"Pedro",3]
[null,null,"Jonas",32]
[null,null,"Carla",29]
[null,null,"Thiago",30]
[null,null,"Fernando",22]
[null,null,"Fábio",27]
[null,null,"Gustavo",50]
[]
[]
[]
[]
[]
[null,null,"Relação de Comissão"]
[null,null,"Nome","Valor"]
[null,null,"Fábio ",567]
[null,null,"Marcia",560]
[null,null,"Fabiana",400]
[null,null,"Edson",900]
[null,null,"Jefferson",980]
[null,null,"Sergio",345]

{"sheet":"FORMATAÇÃO CONDICIONAL na linha","index":14,"n_rows":26,"n_cols":7,"rows_kept":26,"cut":false,"hidden":false,"merged":[[3,1,3,6],[16,1,16,6]]}
[null,"FORMATAÇÃO CONDICIONAL na linha"]
[]
[]
[null,"Cesta básica"]
[null,"Produtos","Quantidade","Embalagem","Preço Unitário","Valor Total ","Cotação"]
[null,"Arroz",1,"5 Kg",3.57,{"$f":"E6","v":3.57},"sim"]
[null,"Feijão",2,"1 Kg",2.14,{"$f":"E7","v":2.14},"Sim"]
[null,"Café",3,"1/2 Kg",0.89,0.89,"No"]
[null,"Açucar",5,"1 Kg",0.53,0.53,"No"]
[null,"Óleo",3,"900 ml",0.69,0.69,"sim"]
[null,"Sal",1,"1 Kg",0.28000000000000003,0.28000000000000003,"No"]
[null,"Macarrão",2,"1/2 Kg",0.65,0.65]
[null,"Molho de tomate",3,"350 g",0.72,0.72,"no"]
[]
[]
[]
[null,"Cesta básica"]
[null,"Produtos","Quantidade","Embalagem","Preço Unitário","Valor Total ","Cotação"]
[null,"Arroz",1,"5 Kg",3.57,{"$f":"E19","v":3.57},"ok"]
[null,"Feijão",2,"1 Kg",2.14,{"$f":"E20","v":2.14}]
[null,"Café",3,"1/2 Kg",0.89,0.89]
[null,"Açucar",5,"1 Kg",0.53,0.53]
[null,"Óleo",3,"900 ml",0.69,0.69,"ok"]
[null,"Sal",1,"1 Kg",0.28000000000000003,0.28000000000000003]
[null,"Macarrão",2,"1/2 Kg",0.65,0.65]
[null,"Molho de tomate",3,"350 g",0.72,0.72,"ok"]

{"sheet":"FORMATAÇÃO CONDICIONAL na Li_ex","index":15,"n_rows":24,"n_cols":9,"rows_kept":24,"cut":false,"hidden":false,"merged":[[2,2,2,7]]}
[null,null,"FORMATAÇÃO CONDICIONAL na linha Exercício"]
[]
[null,null,"Cesta básica"]
[null,null,"Produtos","Quantidade","Embalagem","Preço Unitário","Valor Total ","Cotação"]
[null,null,"Arroz",1,"5 Kg",3.57,{"$f":"F5","v":3.57},"ok"]
[null,null,"Feijão",2,"1 Kg",2.14,2.14]
[null,null,"Café",3,"1/2 Kg",0.89,0.89]
[null,null,"Açucar",5,"1 Kg",0.53,0.53,"ok"]
[null,null,"Óleo",3,"900 ml",0.69,0.69]
[null,null,"Sal",1,"1 Kg",null,null,"ok"]
[null,null,"Macarrão",2,"1/2 Kg",0.65,0.65,"ok"]
[null,null,"Molho de tomate",3,"350 g",0.72,0.72]
[null,null,null,null,null,null,null,"]"]
[]
[]
[]
[]
[]
[null,null,"Pilotos","Bahrein","Austrália","Malásia","China","Espanha","Total"]
[null,null,"Jenson Button",16,22,12,23,3,{"$f":"SUM(D20:H20)","v":76}]
[null,null,"Fernando Alonso",12,2,19,22,20,{"$f":"SUM(D21:H21)","v":75}]
[null,null,"Sebastian Vettel",39,3,13,2,8,{"$f":"SUM(D22:H22)","v":65}]
[null,null,"Mark Webber",14,22,20,3,3,{"$f":"SUM(D23:H23)","v":62}]
[null,null,"Nico Rosberg",18,14,4,30,5,{"$f":"SUM(D24:H24)","v":71}]

{"sheet":"TECLAS DE ATALHO","index":16,"n_rows":83,"n_cols":3,"rows_kept":83,"cut":false,"hidden":false,"merged":[]}
[null,"Teclas de Atalho"]
[]
[null,"Teclas de Atalho","Ação"]
[null,"Alt or F10","Ativa Menu"]
[null,"Alt+=","AutoSoma"]
[null,"Alt+F1","Inserir Gráfico"]
[null,"Alt+F2","Salvar Como"]
[null,"Alt+F4","Exit"]
[null,"Alt+F8","Caixa de Dialogo de Macros"]
[null,"Alt+F11","Editor Visual Basic"]
[null,"Alt+Shift+F1","Nova Planilha"]
[null,"Alt+Shift+F2","Salvar"]
[null,"Ctrl+-","Excluir"]
[null,"Ctrl+:","Inserir Hora Atual"]
[null,"Ctrl++","Inserir"]
[null,"Ctrl++","Inserir"]
[null,"Ctrl+1","Formatar Células"]
[null,"Ctrl+2","Negrito"]
[null,"Ctrl+3","Itálico"]
[null,"Ctrl+4","Sublinhado"]
[null,"Ctrl+5","Tachado"]
[null,"Ctrl+6","Exibir/ Ocultar Objetos"]
[null,"Ctrl+7","Exibir/Ocultar Barra Ferramentas Padrão"]
[null,"Ctrl+8","mostrar Simbolos Tópicos"]
[null,"Ctrl+9","Ocultar Linhas"]
[null,"Ctrl+A","Abrir"]
[null,"Ctrl+B","Salvar"]
[null,"Ctrl+C","Copiar"]
[null,"Ctrl+D","Preencher abaixo"]
[null,"Ctrl+F","Copia Formula Abaixo $"]
[null,"Ctrl+H","Copia Celula Acima e Cola Valor"]
[null,"Ctrl+I","Itálico"]
[null,"Ctrl+K","Inserir Hyperlink"]
[null,"Ctrl+L","Localizar"]
[null,"Ctrl+N","Negrito"]
[null,"Ctrl+O","Nova Pasta de Trabalho"]
[null,"Ctrl+O","Nova Pasta de Trabalho"]
[null,"Ctrl+P","Imprimir"]
[null,"Ctrl+R","Preencher Direita"]
[null,"Ctrl+S","Sublinhar"]
[null,"Ctrl+U","Substituir"]
[null,"Ctrl+V","Colar"]
[null,"Ctrl+X","Recortar"]
[null,"Ctrl+Y","Ir Para"]
[null,"Ctrl+Z","Desfazer"]
[null,"Ctrl+F3","Definir Nome"]
[null,"Ctrl+F4","Fechar"]
[null,"Ctrl+F5","Restaurar Janela ativa."]
[null,"Ctrl+F6","Próxima Pasta de Trabalho"]
[null,"Ctrl+F7","Mover Janela"]
[null,"Ctrl+F8","Redimensionar Janela"]
[null,"Ctrl+F9","Minimizar Pasta de Trabalho"]
[null,"Ctrl+F10","Maximizar e restaurar janela"]
[null,"Ctrl+F11","Inserir Planilha 4.0 Macro"]
[null,"Ctrl+F12","Arquivo Abrir"]
[null,"Ctrl+Shift+!","Formato 2 casas decimais"]
[null,"Ctrl+Shift+#","Formato Data"]
[null,"Ctrl+Shift+$","Formato Moeda"]
[null,"Ctrl+Shift+%","Formato Percentual"]
[null,"Ctrl+Shift+& ","Borda externa na area selecionada"]
[null,"Ctrl+Shift+(","Reexibir Linhas"]
[null,"Ctrl+Shift+)","Reexibir Colunas"]
[null,"Ctrl+Shift+*","Seleciona Região Atual"]
[null,"Ctrl+Shift+@","Formato Hora"]
[null,"Ctrl+Shift+^","Formato Exponencial "]
[null,"Ctrl+Shift+_","Remove borda externa"]
[null,"Ctrl+Shift+~","Formato Geral"]
[null,"Ctrl+Shift+A","Inserir Nomes em argumentos das formulas"]
[null,"Ctrl+Shift+F3","Criar Nomes usando Linhas e Colunas."]
[null,"Ctrl+Shift+F6","Janela Anterior"]
[null,"Ctrl+Shift+F12","Imprimir"]
[null,"Ctrl+Tab","Alterna entre Pastas de Trabalho abertas"]
[null,"Enter","Finalizar comando"]
[null,"F1","Ajuda"]
[null,"F2","Editar Célula"]
[null,"F3","Colar Nome"]
[null,"F4","Em Edição formulas alterna Ref. absoluta/relativa."]
[null,"F4","Repetir última ação"]
[null,"F5","Ir Para"]
[null,"F7","Verificar Ortografia"]
[null,"F8","Modo Extend  para selecionar células"]
[null,"F9","Recalcular todas as plans"]
[null,"F10","Ativar barra Menu"]